{"text_format":"1","workbook":"xlsx","n_sheets":4,"sheets":["Ülesanded","Uudised","Sheet1","Kaader"],"not_rendered":{"charts":0,"images":0,"macros":1,"external_links":1,"defined_names":9,"comments":0,"pivot_tables":0},"unopened":[],"bounds":{"document_bytes":16777216,"sheet_cells":100000,"rows_first":2000,"rows_last":500,"rows_between":2000,"halvings":0,"cell_chars":16384,"cell_head_chars":4096},"cells_cut":0,"cells_raw":0,"read":"whole","date_system":"1900"}

{"sheet":"Ülesanded","index":0,"n_rows":5,"n_cols":19,"rows_kept":5,"cut":false,"hidden":false,"merged":[]}
[]
[]
[null,null,null,null,null,null,null,null,null,null,null,null,null,null,null,null,null,null,"rre"]
[null,null,null,null,null,null,null,null,null,null,null,null,null,null,null,null,null,null,45]
[null,null,null,null,null,null,null,null,null,null,null,null,null,null,null,null,null,null,78]

{"sheet":"Uudised","index":1,"n_rows":147,"n_cols":5,"rows_kept":147,"cut":false,"hidden":false,"merged":[]}
["Aeg","Uudis",null,null,"Uudis"]
["23:41:00","Howard tegi taas hea partii, aga Baskonia sai Belgradi karukoopas kaotuse",null,null,"*aa*"]
["22:57:00","Evestus: Laanet pole andnud veenvat vastust, mida prokuratuurile ette heidab"]
["22:47:00","Langerbaur MM-i eel: EM-il sain kindluse, et mul peab närv vastu"]
["22:17:00","ETV spordisaade, 19. märts"]
["22:17:00","\"Impulss\": põhiseadus ei luba Vene kodanikelt valimisõiguse äravõtmist"]
["22:01:00","Aktuaalne kaamera kell 21:00"]
["21:55:00","16-aastane Vagul tuli suusahüpetes esimest korda Eesti meistriks"]
["21:35:00","Põnevusmängu võitnud Rae võrkpallinaiskond jõudis esmakordselt finaali"]
["21:33:00","Jõhvis algas Ida-Virumaa kooliteatrite festival"]
["21:29:00","Kevad algab jaheda ja sombuse ilmaga"]
["21:21:00","ERR Riias: Läti tahab jõudsalt meditsiiniturismi arendada"]
["21:20:00","Ministeerium plaanib peatada uutele turbakaevandusaladele lubade väljastamise"]
["21:12:00","Kalev/Cramo võitis Eesti-Läti liiga põhihooajal kõik kodumängud"]
["21:10:00","Mobiiliga võib saada hääletada järgmistel riigikogu valimistel"]
["21:08:00","Saksamaa vahistas afgaanid, kes kavatsesid rünnata Rootsi parlamenti"]
["20:31:00","Venemaa ja Valgevene sportlased ei või osaleda Pariisi OM-i avatseremoonial"]
["20:27:00","Unilever lõpetab jäätise müümise"]
["20:23:00","Zucchero: tahan iga plaadi ja turneega midagi uut teha"]
["19:59:00","Noorte Balti liigas pääses veerandfinaali kolm Eesti meeskonda"]
["19:53:00","Viipekeelsed uudised"]
["19:48:00","Kliimateadlane: möödunud talv oli kõige soojem, mis seni mõõdetud"]
["19:35:00","Aktuaalne kaamera kell 18:30"]
["19:18:00","Festival Erisuste erinevused toob etenduskunstid erivajadustega inimesteni"]
["19:12:00","ETV spordi lühiuudised 19. märtsil"]
["19:00:00","Uuring: woke-ideoloogia on populaarsem naiste seas"]
["18:58:00","VAT Teatri lavastus \"Raev\" õpetab vihavaenlases inimest nägema"]
["18:51:00","Stoltenbergi Kaukaasia ringreis ärritas Venemaad"]
["18:49:00","Ekspertide sõnul on Vene teravilja imporditolli mõju turule ja hinnale väike"]
["18:47:00","Agentuur: süsiniku sidumise mõttes pole mõistlik praegu raiemahte vähendada"]
["18:44:00","Pogacar tõusis karmides tingimustes Kataloonia velotuuri üldliidriks"]
["18:44:00","Noore inseneri preemia pälvis drooniarendaja Margus Sammelsaar"]
["18:40:00","Ministeerium kavatseb peatada lubade andmise uutele turbakaevandusaladele"]
["18:40:00","Estonia juurdeehitust ei saa tõenäoliselt rajada riigi eriplaneeringuga"]
["18:35:00","Päevakaja (19.03.2024 18:00:00)"]
["18:29:00","Estonia juurdeehitust tõenäoliselt riigi eriplaneeringuga rajada ei saa"]
["17:51:00","Eesti rattur saavutas Prantsusmaal kuuenda koha"]
["17:30:00","Eestlased tõid Liepaja motokrossilt koju kolm esikohta"]
["17:21:00","Elektri börsihind tõuseb kolmapäeva hommikul ligi 500 euroni"]
["17:19:00","Aktuaalne kaamera kell 17:00"]
["16:45:00","Eesti külalislahkeimas külas käib aktiivne elu"]
["16:34:00","Üprus rassis põhiturniiri viimases voorus väljakul kõik 40 minutit"]
["16:31:00","Uuring: Eesti õhk on üks maailma puhtamaid"]
["16:19:00","Kliimateadlane Anger-Kraavi kandideerib Parempoolsete nimekirjas"]
["16:16:00","Eesti ja Poola mängu vilistab EM-finaalturniiri kogemusega kohtunik"]
["16:06:00","Saksa sotsiaaldemokraat: Scholz võib Tauruste saatmises ka ümber mõelda"]
["16:06:00","Analüütik: Saksamaal ei paista Tauruste Kiievile andmiseks kompromissi"]
["16:06:00","Bundestagi liige: Venemaa on Scholzi ära hirmutanud"]
["16:05:00","TLÜ kirjastuse uus teos annab ülevaate poliitilise kommunikatsiooni toimimisest"]
["16:02:00","Kallas Berliinis Scholzile: Ukraina vajab kiirelt relvi ja laskemoona"]
["15:48:00","Ossinovski: kohtuotsus Keskerakonna suhtes on häiriv, arutame seda lähiajal"]
["15:45:00","Kakaoubade hind maailmaturul vallutab üha uusi tippe"]
["15:41:00","Itaalia jalgpallur lahkus süüdistuse järel koondise juurest"]
["15:37:00","Tumeda šokolaadi hind võib hüppeliselt tõusta"]
["15:36:00","Hanimägi: miljonitrahv võib tähendada senise Keskerakonna lõppu"]
["15:35:00","Põllumeestele teevad muret rohepöörde kohustused ja lisakulud"]
["15:29:00","Soomlased kulutavad vähem ja restoranid lähevad üksteise järel pankrotti"]
["15:28:00","Tallinn alustab Peterburi tee suure remondiga sügisel"]
["15:20:00","Raadiouudised (19.03.2024 15:00:00)"]
["15:14:00","Rakvere Funkfest kuulutas välja esimesed artistid"]
["15:06:00","ROK süüdistab Venemaa valitsust spordi politiseerimises"]
["14:45:00","Maavägede juhataja: Prantsuse maavägi on valmis reageerima igale ohule"]
["14:41:00","Kell 21.40 \"Esimeses stuudios\" endine riigiprokurör Evestus"]
["14:37:00","Ants Erik: Eestis on aastaid vaid räägitud, et tuleb puitu rohkem väärindada"]
["14:35:00","Eesti peab Euroopa Komisjoni haldustakistuste lahendamise määrust tarbetuks"]
["14:34:00","Eesti parim naispaar: on kuidagi hea ja tugev seljatagune"]
["14:28:00","Suri endine hokiproff ja Sabalenka poiss-sõber"]
["14:19:00","Kell 20 \"Impulsis\": Vene kodanike hääleõigus kohalikel valimistel"]
["14:16:00","Harri Tiido: Venemaa uue eliidi kujundamisest"]
["14:15:00","\"Impulss\": kui kerge või raske on vabaneda Vene kodakondsusest?"]
["14:11:00","WSJ: Pärsia lahe riikide pangad katkestavad sidemed Moskvaga"]
["14:10:00","Suri näitleja Meeli Sööt"]
["14:08:00","Vainik: loo endale keskkond, kus vaid tervislikud toidud on kättesaadavad"]
["14:03:00","Estonia teatrile juurdeehituse rajamine riigi eriplaneeringuga on küsitav"]
["13:46:00","Heitlikku hooaega tegev Lazio leidis uue peatreeneri"]
["13:37:00","Draamateatri juhiks pürgib kolm inimest"]
["13:32:00","Kokku vajunud Rootsi jalgpallikoondislane viidi taastuskliinikusse"]
["13:23:00","Heneliis Notton: miks ja kuidas kollektiivselt kureerida?"]
["13:22:00","Eesti suurim relvatarnija on Saksamaa"]
["13:20:00","Aasia sõnatu teatri festival 1000 Kurge keskendub kaose ja harmoonia tasakaalule"]
["13:14:00","Eestis on kanda kinnitamas koerte südameusstõbe põhjustav parasiit"]
["13:06:00","Johanna Rannik. Balti Tantsu Platvormi päevik"]
["13:04:00","Hiina juht Xi külastab mais Prantsusmaad"]
["13:00:00","Kumu Dokumentaal näitab parima doki Oscari nominenti \"Neli tütart\""]
["12:54:00","Ulukiuurija Peep Männil: jahinduse eesmärk on hoida looduses tasakaalu"]
["12:53:00","Kolmapäeval kell 11 \"Otse uudistemajast\": Anneli Ott"]
["12:52:00","Nädala parimad lood | Ouu, Valge Tüdruk, Night Tapes, Justin Timberlake jt"]
["12:42:00","Jürgensi klubi kaotas Leedu kõrgliiga neljandale"]
["12:42:00","Bill Gatesi Terrapower kavatseb alustada juunis sulasoolareaktori ehitust"]
["12:30:00","Jaapani keskpank lõpetas negatiivsete intressimäärade ajajärgu"]
["12:25:00","Kolmapäeval sajab mitmel pool vähest vihma ja lörtsi"]
["12:20:00","Raadiouudised (19.03.2024 12:00:00)"]
["12:18:00","Talisurfi MM-ilt tuli Eestisse kaks esikohta"]
["12:04:00","Vene laulja Valeri Leontjev lõpetab 75-aastasena muusikukarjääri"]
["11:58:00","Keldo: uus justiitsminister saab ametivande anda ülejärgmisel nädalal"]
["11:53:00","Oskar Lutsu huumoripreemia saab Eesti Draamateatri näitleja Tiit Sukk"]
["11:51:00","Leeni Linna: kui oleks liiga kerge, poleks ka huvitav filmi teha"]
["11:46:00","Leedu peaminister esitas uueks kaitseministriks Laurynas Kasčiunase"]
["11:44:00","EstLink 2 parandamise venitab pikaks kaabli unikaalsus"]
["11:41:00","Vassil: Vene huvi lääne teadusasutuste vastu on märkimisväärne"]
["11:36:00","Eesti saadab välja Venemaa saatkonna töötaja"]
["11:33:00","Tartu Rattaralli naaseb harjumuspärasesse keskkonda"]
["11:25:00","Koolinoored valmistavad GHB kiirtesti sisaldavaid käevõrusid"]
["11:03:00","Arvustus. \"Mo Mamma\": lilled kõigile emadele ja tütardele"]
["11:00:00","Kahevõistluse naiste MK-sarjas jagasid kõik võidud norralannad isekeskis"]
["10:55:00","Keeleteadlased: eestivenelased võivad end rahuga kakskeelseks pidada"]
["10:55:00","Horvaatia põhiseaduskohus keelas presidendil peaministriks pürgida"]
["10:39:00","ERR vahendab sel nädalal iluuisutamise MM-i"]
["10:38:00","Jäätmereformiga muutub sortimata prügi sorditud prügist kolm korda kallimaks"]
["10:34:00","Teatri- ja muusikamuuseum avab näituse pöörastest teatrilugudest"]
["10:30:00","Kinosilm | \"Langemise anatoomia\" on kuivem kui mõni \"Law & Orderi\" episood"]
["10:24:00","HS: Nordea tegevjuhi palk tõusis, panga töötajate keskmine palk langes"]
["10:23:00","Otse kell 11: mis muudatusi toob jäätmereform prügisortimises?"]
["10:13:00","Talviku oli lähedal AMA superkrossi etapi finaalile"]
["10:04:00","ERR-i teleuudised kell 9:00"]
["10:02:00","Galerii: EKRE poliitikute protest automaksu vastu"]
["09:58:00","Hendrik Toompere jr: kui tahame teatrikaardil olla, peame tegema suurlavastusi"]
["09:55:00","ELAK peab Euroopa Komisjoni haldustakistuste lahendamise määrust tarbetuks"]
["09:55:00","Pärna ja Liis-Toomela: krati määrus sulgeb osaliselt ukse kallutatud otsustele"]
["09:55:00","Tehisaru valskused varjutavad inimeste valged valed"]
["09:54:00","Bachi \"Johannese passioon\" saab Peeter Vähi käes elektroonilise lisa"]
["09:50:00","Soome ametiühingud kaaluvad uusi võimalusi valitsuse survestamiseks"]
["09:50:00","Õhutemperatuur kerkib kuni kuue kraadini"]
["09:46:00","Mis ajab põllumehi meelt avaldama?"]
["09:46:00","Euroala kaubavahetuse ülejääk jõudis jaanuaris ajalooliselt kõrgele tasemele"]
["09:43:00","Sabonis pani kokku haruldase seeria"]
["09:29:00","Galerii: Rakvere Teatris algasid suvelavastuse \"Lahkumine\" proovid"]
["09:25:00","Raadiouudised (19.03.2024 09:00:00)"]
["09:20:00","Hannes Nagel: elanikkonnakaitse jää küll liigub, aga võib-olla ummikusse"]
["09:14:00","Drell vaatas Chicago nappi võitu pingilt"]
["09:03:00","Keelesäuts. Üks asjakohane lugu"]
["09:02:00","Püütonilihast võib saada tulevikus alternatiiv veiselihale"]
["08:42:00","Trumpi võib oodata New Yorgis varade sundvõõrandamine"]
["08:34:00","Eesti kurlingunaiskond avas MM-il võiduarve"]
["08:28:00","Nukuteatrimuuseumi uuel näitusel saab piiluda teatrinukkude sisemusse"]
["08:25:00","ERR-i teleuudised kell 7:00"]
["08:13:00","Kellerteatris algasid proovid müsteeriumiga \"Libarebased\""]
["08:12:00","Kõlvart: miljonieurone karistus poleks Keskerakonnale eksistentsiaalne löök"]
["08:10:00","KUULA | \"Võimla\" arutleb sportlaskarjääri lõpetamise teemal"]
["07:51:00","FT: EL kehtestab 50-protsendilised imporditollid Vene teraviljale"]
["07:44:00","ELAK on vastu Euroopa Komisjoni bürokraatiat lisavale plaanile"]
["07:11:00","Aruanne: Venemaa sõda Ukraina vastu viis sakslaste reaalpalgad langusse"]
["06:54:00","Eesti 200-st lahkunud ettevõtja: valijad selliseks poliitikaks mandaati ei andnud"]
["06:34:00","Ajalooline otsus: Jaapan loobus negatiivsetest intressimääradest"]
["06:04:00","Ekspert: Vene tehaste nafta rafineerimisvõime langes 600 000 barreli võrra päevas"]
["05:39:00","Sõja 755. päev: Saksamaa lubas Ukrainale veel 500 miljoni euro ulatuses sõjalist abi"]
["05:03:00","Euroopa majanduslangus ja taastuvenergia areng viisid CO2 kvoodi hinna alla"]

{"sheet":"Sheet1","index":2,"n_rows":75,"n_cols":3,"rows_kept":75,"cut":false,"hidden":false,"merged":[]}
[]
[]
[]
[null,"Aeg","Uudis"]
[null,"23:41:00","Howard tegi taas hea partii, aga Baskonia sai Belgradi karukoopas kaotuse"]
[null,"22:57:00","Evestus: Laanet pole andnud veenvat vastust, mida prokuratuurile ette heidab"]
[null,"22:17:00","ETV spordisaade, 19. märts"]
[null,"22:01:00","Aktuaalne kaamera kell 21:00"]
[null,"21:55:00","16-aastane Vagul tuli suusahüpetes esimest korda Eesti meistriks"]
[null,"21:35:00","Põnevusmängu võitnud Rae võrkpallinaiskond jõudis esmakordselt finaali"]
[null,"21:33:00","Jõhvis algas Ida-Virumaa kooliteatrite festival"]
[null,"21:20:00","Ministeerium plaanib peatada uutele turbakaevandusaladele lubade väljastamise"]
[null,"21:10:00","Mobiiliga võib saada hääletada järgmistel riigikogu valimistel"]
[null,"21:08:00","Saksamaa vahistas afgaanid, kes kavatsesid rünnata Rootsi parlamenti"]
[null,"20:31:00","Venemaa ja Valgevene sportlased ei või osaleda Pariisi OM-i avatseremoonial"]
[null,"20:23:00","Zucchero: tahan iga plaadi ja turneega midagi uut teha"]
[null,"19:59:00","Noorte Balti liigas pääses veerandfinaali kolm Eesti meeskonda"]
[null,"19:35:00","Aktuaalne kaamera kell 18:30"]
[null,"19:00:00","Uuring: woke-ideoloogia on populaarsem naiste seas"]
[null,"18:51:00","Stoltenbergi Kaukaasia ringreis ärritas Venemaad"]
[null,"18:44:00","Noore inseneri preemia pälvis drooniarendaja Margus Sammelsaar"]
[null,"18:40:00","Estonia juurdeehitust ei saa tõenäoliselt rajada riigi eriplaneeringuga"]
[null,"18:29:00","Estonia juurdeehitust tõenäoliselt riigi eriplaneeringuga rajada ei saa"]
[null,"17:51:00","Eesti rattur saavutas Prantsusmaal kuuenda koha"]
[null,"17:19:00","Aktuaalne kaamera kell 17:00"]
[null,"16:31:00","Uuring: Eesti õhk on üks maailma puhtamaid"]
[null,"16:19:00","Kliimateadlane Anger-Kraavi kandideerib Parempoolsete nimekirjas"]
[null,"16:16:00","Eesti ja Poola mängu vilistab EM-finaalturniiri kogemusega kohtunik"]
[null,"16:06:00","Saksa sotsiaaldemokraat: Scholz võib Tauruste saatmises ka ümber mõelda"]
[null,"16:06:00","Analüütik: Saksamaal ei paista Tauruste Kiievile andmiseks kompromissi"]
[null,"16:06:00","Bundestagi liige: Venemaa on Scholzi ära hirmutanud"]
[null,"16:05:00","TLÜ kirjastuse uus teos annab ülevaate poliitilise kommunikatsiooni toimimisest"]
[null,"15:45:00","Kakaoubade hind maailmaturul vallutab üha uusi tippe"]
[null,"15:41:00","Itaalia jalgpallur lahkus süüdistuse järel koondise juurest"]
[null,"15:37:00","Tumeda šokolaadi hind võib hüppeliselt tõusta"]
[null,"15:20:00","Raadiouudised (19.03.2024 15:00:00)"]
[null,"15:06:00","ROK süüdistab Venemaa valitsust spordi politiseerimises"]
[null,"14:45:00","Maavägede juhataja: Prantsuse maavägi on valmis reageerima igale ohule"]
[null,"14:37:00","Ants Erik: Eestis on aastaid vaid räägitud, et tuleb puitu rohkem väärindada"]
[null,"14:34:00","Eesti parim naispaar: on kuidagi hea ja tugev seljatagune"]
[null,"14:16:00","Harri Tiido: Venemaa uue eliidi kujundamisest"]
[null,"14:08:00","Vainik: loo endale keskkond, kus vaid tervislikud toidud on kättesaadavad"]
[null,"13:37:00","Draamateatri juhiks pürgib kolm inimest"]
[null,"13:32:00","Kokku vajunud Rootsi jalgpallikoondislane viidi taastuskliinikusse"]
[null,"13:22:00","Eesti suurim relvatarnija on Saksamaa"]
[null,"13:20:00","Aasia sõnatu teatri festival 1000 Kurge keskendub kaose ja harmoonia tasakaalule"]
[null,"13:04:00","Hiina juht Xi külastab mais Prantsusmaad"]
[null,"13:00:00","Kumu Dokumentaal näitab parima doki Oscari nominenti \"Neli tütart\""]
[null,"12:54:00","Ulukiuurija Peep Männil: jahinduse eesmärk on hoida looduses tasakaalu"]
[null,"12:30:00","Jaapani keskpank lõpetas negatiivsete intressimäärade ajajärgu"]
[null,"12:20:00","Raadiouudised (19.03.2024 12:00:00)"]
[null,"12:04:00","Vene laulja Valeri Leontjev lõpetab 75-aastasena muusikukarjääri"]
[null,"11:58:00","Keldo: uus justiitsminister saab ametivande anda ülejärgmisel nädalal"]
[null,"11:53:00","Oskar Lutsu huumoripreemia saab Eesti Draamateatri näitleja Tiit Sukk"]
[null,"11:44:00","EstLink 2 parandamise venitab pikaks kaabli unikaalsus"]
[null,"11:36:00","Eesti saadab välja Venemaa saatkonna töötaja"]
[null,"11:33:00","Tartu Rattaralli naaseb harjumuspärasesse keskkonda"]
[null,"10:55:00","Horvaatia põhiseaduskohus keelas presidendil peaministriks pürgida"]
[null,"10:13:00","Talviku oli lähedal AMA superkrossi etapi finaalile"]
[null,"09:58:00","Hendrik Toompere jr: kui tahame teatrikaardil olla, peame tegema suurlavastusi"]
[null,"09:54:00","Bachi \"Johannese passioon\" saab Peeter Vähi käes elektroonilise lisa"]
[null,"09:50:00","Soome ametiühingud kaaluvad uusi võimalusi valitsuse survestamiseks"]
[null,"09:50:00","Õhutemperatuur kerkib kuni kuue kraadini"]
[null,"09:46:00","Euroala kaubavahetuse ülejääk jõudis jaanuaris ajalooliselt kõrgele tasemele"]
[null,"09:25:00","Raadiouudised (19.03.2024 09:00:00)"]
[null,"09:14:00","Drell vaatas Chicago nappi võitu pingilt"]
[null,"09:02:00","Püütonilihast võib saada tulevikus alternatiiv veiselihale"]
[null,"08:28:00","Nukuteatrimuuseumi uuel näitusel saab piiluda teatrinukkude sisemusse"]
[null,"08:12:00","Kõlvart: miljonieurone karistus poleks Keskerakonnale eksistentsiaalne löök"]
[null,"07:44:00","ELAK on vastu Euroopa Komisjoni bürokraatiat lisavale plaanile"]
[null,"07:11:00","Aruanne: Venemaa sõda Ukraina vastu viis sakslaste reaalpalgad langusse"]
[null,"06:54:00","Eesti 200-st lahkunud ettevõtja: valijad selliseks poliitikaks mandaati ei andnud"]
[null,"06:34:00","Ajalooline otsus: Jaapan loobus negatiivsetest intressimääradest"]
[null,"05:39:00","Sõja 755. päev: Saksamaa lubas Ukrainale veel 500 miljoni euro ulatuses sõjalist abi"]
[null,"05:03:00","Euroopa majanduslangus ja taastuvenergia areng viisid CO2 kvoodi hinna alla"]

{"sheet":"Kaader","index":3,"n_rows":118,"n_cols":14,"rows_kept":118,"cut":false,"hidden":false,"merged":[]}
[null,null,null,null,null,null,null,null,null,null,null,null,null,"1. lisab vahesumma read, milles kuvatakse sünnipäevalaste arv kuude lõikes"]
[null,null,null,null,null,null,null,null,null,null,null,null,null,"2. lisab vahesumma read, milles kuvatakse keskmine palk ja keskmine vanus osakondade lõikes"]
[null,null,null,null,null,null,null,null,null,null,null,null,null,"3. taastab esialgse andmetabeli seisu."]
[]
[]
[null,"Nimi","Sugu","Sünniaeg","Kuu","Vanus","Osakond","Amet","Palk"]
[null,"Jaan Laubre","mees","1988-01-16",{"$f":"MONTH(D7)","v":1},{"$f":"INT((TODAY()-D7)/365.25)","v":37},"Finants","raamatupidaja",850]
[null,"Evi Sarapik","naine","1958-01-06",{"$f":"MONTH(D8)","v":1},{"$f":"INT((TODAY()-D8)/365.25)","v":67},"Finants","raamatupidaja",850]
[null,"Jaan Noormets","mees","1993-01-07",{"$f":"MONTH(D9)","v":1},{"$f":"INT((TODAY()-D9)/365.25)","v":32},"Müük","diiler",770]
[null,"Leida Jaanus","naine","1955-01-15",{"$f":"MONTH(D10)","v":1},{"$f":"INT((TODAY()-D10)/365.25)","v":70},"Tootmine","tööline",640]
[null,"Malle Põldmaa","naine","1975-01-06",{"$f":"MONTH(D11)","v":1},{"$f":"INT((TODAY()-D11)/365.25)","v":50},"Tootmine","tööline",650]
[null,"Hanno Pedak","mees","1981-01-24",{"$f":"MONTH(D12)","v":1},{"$f":"INT((TODAY()-D12)/365.25)","v":44},"Transport","autojuht",710]
[null,null,null,null,"1 Count",null,{"$f":"SUBTOTAL(3,G7:G12)","v":6}]
[null,"Malle Kivioja","naine","1981-02-03",{"$f":"MONTH(D14)","v":2},{"$f":"INT((TODAY()-D14)/365.25)","v":44},"Finants","juhataja",2430]
[null,"Erki Arsenov","mees","1959-02-12",{"$f":"MONTH(D15)","v":2},{"$f":"INT((TODAY()-D15)/365.25)","v":66},"Ladu","komplekteerija",690]
[null,"Einar Laanepõld","mees","1972-02-12",{"$f":"MONTH(D16)","v":2},{"$f":"INT((TODAY()-D16)/365.25)","v":53},"Ladu","tööline",500]
[null,"Anton Meister","mees","1955-02-08",{"$f":"MONTH(D17)","v":2},{"$f":"INT((TODAY()-D17)/365.25)","v":70},"Ladu","juhataja",1510]
[null,"Madis Paulus","mees","1985-02-21",{"$f":"MONTH(D18)","v":2},{"$f":"INT((TODAY()-D18)/365.25)","v":40},"Tootmine","tööline",750]
[null,"Irma Piirsalu","naine","1987-02-13",{"$f":"MONTH(D19)","v":2},{"$f":"INT((TODAY()-D19)/365.25)","v":38},"Tootmine","tööline",700]
[null,"Arnold Merilaid","mees","1966-02-22",{"$f":"MONTH(D20)","v":2},{"$f":"INT((TODAY()-D20)/365.25)","v":59},"Transport","autojuht",630]
[null,"Ando Nõmmik","mees","1989-02-20",{"$f":"MONTH(D21)","v":2},{"$f":"INT((TODAY()-D21)/365.25)","v":36},"Transport","autojuht",770]
[null,null,null,null,"2 Count",null,{"$f":"SUBTOTAL(3,G14:G21)","v":8}]
[null,"Selma Parre","naine","1979-03-20",{"$f":"MONTH(D23)","v":3},{"$f":"INT((TODAY()-D23)/365.25)","v":46},"Ladu","tööline",710]
[null,"Laine Eek","naine","1993-03-11",{"$f":"MONTH(D24)","v":3},{"$f":"INT((TODAY()-D24)/365.25)","v":32},"Majandus","sekretär",510]
[null,"Annika Paju","naine","1991-03-18",{"$f":"MONTH(D25)","v":3},{"$f":"INT((TODAY()-D25)/365.25)","v":34},"Majandus","sekretär",510]
[null,"Helen Aigro","naine","1997-03-03",{"$f":"MONTH(D26)","v":3},{"$f":"INT((TODAY()-D26)/365.25)","v":28},"Müük","sekretär",570]
[null,"Jana Kaal","naine","1980-03-18",{"$f":"MONTH(D27)","v":3},{"$f":"INT((TODAY()-D27)/365.25)","v":45},"Müük","sekretär",570]
[null,"Tarmo Müller","mees","1979-03-05",{"$f":"MONTH(D28)","v":3},{"$f":"INT((TODAY()-D28)/365.25)","v":46},"Müük","müügijuht",1390]
[null,"Aare Raudsepp","mees","1991-03-01",{"$f":"MONTH(D29)","v":3},{"$f":"INT((TODAY()-D29)/365.25)","v":34},"Müük","diiler",700]
[null,"Juulia Tubin","naine","1964-03-02",{"$f":"MONTH(D30)","v":3},{"$f":"INT((TODAY()-D30)/365.25)","v":61},"Müük","sekretär",570]
[null,"Aigi Härm","naine","1980-03-22",{"$f":"MONTH(D31)","v":3},{"$f":"INT((TODAY()-D31)/365.25)","v":45},"Ost","sekretär",720]
[null,"Aadu Heinlo","mees","1992-03-27",{"$f":"MONTH(D32)","v":3},{"$f":"INT((TODAY()-D32)/365.25)","v":32},"Tootmine","lukksepp",570]
[null,"Andrus Koort","mees","1972-03-05",{"$f":"MONTH(D33)","v":3},{"$f":"INT((TODAY()-D33)/365.25)","v":53},"Tootmine","treial",770]
[null,"Margus Maasalu","mees","1962-03-04",{"$f":"MONTH(D34)","v":3},{"$f":"INT((TODAY()-D34)/365.25)","v":63},"Tootmine","tööline",710]
[null,"Madis Maasalu","mees","1955-03-11",{"$f":"MONTH(D35)","v":3},{"$f":"INT((TODAY()-D35)/365.25)","v":70},"Tootmine","tööline",720]
[null,"Hanno Pajusaar","mees","1990-03-27",{"$f":"MONTH(D36)","v":3},{"$f":"INT((TODAY()-D36)/365.25)","v":34},"Tootmine","tööline",760]
[null,"Boris Küünemäe","mees","1987-03-13",{"$f":"MONTH(D37)","v":3},{"$f":"INT((TODAY()-D37)/365.25)","v":38},"Transport","autojuht",650]
[null,"Aadu Malva","mees","1970-03-06",{"$f":"MONTH(D38)","v":3},{"$f":"INT((TODAY()-D38)/365.25)","v":55},"Transport","autojuht",790]
[null,"Kristiina Oks","naine","1970-03-15",{"$f":"MONTH(D39)","v":3},{"$f":"INT((TODAY()-D39)/365.25)","v":55},"Transport","dispetser",630]
[null,null,null,null,"3 Count",null,{"$f":"SUBTOTAL(3,G23:G39)","v":17}]
[null,"Faina Lepp","naine","1982-04-01",{"$f":"MONTH(D41)","v":4},{"$f":"INT((TODAY()-D41)/365.25)","v":42},"Finants","jurist",1570]
[null,"Airi Põld","naine","1969-04-10",{"$f":"MONTH(D42)","v":4},{"$f":"INT((TODAY()-D42)/365.25)","v":55},"Ladu","komplekteerija",770]
[null,"Karl Salu","mees","1960-04-19",{"$f":"MONTH(D43)","v":4},{"$f":"INT((TODAY()-D43)/365.25)","v":64},"Ladu","dispetser",660]
[null,"Erika Bachmann","naine","1983-04-07",{"$f":"MONTH(D44)","v":4},{"$f":"INT((TODAY()-D44)/365.25)","v":41},"Müük","müügijuht",900]
[null,"Ene Elmik","naine","1983-04-24",{"$f":"MONTH(D45)","v":4},{"$f":"INT((TODAY()-D45)/365.25)","v":41},"Müük","müügijuht",850]
[null,"Kristjan Mägi","mees","1989-04-16",{"$f":"MONTH(D46)","v":4},{"$f":"INT((TODAY()-D46)/365.25)","v":35},"Müük","diiler",730]
[null,"Reijo Okspuu","mees","1992-04-15",{"$f":"MONTH(D47)","v":4},{"$f":"INT((TODAY()-D47)/365.25)","v":32},"Müük","diiler",650]
[null,"Einar Ehala","mees","1954-04-24",{"$f":"MONTH(D48)","v":4},{"$f":"INT((TODAY()-D48)/365.25)","v":70},"Tootmine","treial",680]
[null,"Aadu Elson","mees","1973-04-09",{"$f":"MONTH(D49)","v":4},{"$f":"INT((TODAY()-D49)/365.25)","v":51},"Tootmine","tööline",750]
[null,"Marko Erikson","mees","1953-04-06",{"$f":"MONTH(D50)","v":4},{"$f":"INT((TODAY()-D50)/365.25)","v":71},"Tootmine","meister",920]
[null,"Elvi Berk","naine","1983-04-06",{"$f":"MONTH(D51)","v":4},{"$f":"INT((TODAY()-D51)/365.25)","v":41},"Transport","dispetser",640]
[null,null,null,null,"4 Count",null,{"$f":"SUBTOTAL(3,G41:G51)","v":11}]
[null,"Kristel Astok","naine","1969-05-09",{"$f":"MONTH(D53)","v":5},{"$f":"INT((TODAY()-D53)/365.25)","v":55},"Finants","raamatupidaja",850]
[null,"Vilma Eesmaa","naine","1985-05-28",{"$f":"MONTH(D54)","v":5},{"$f":"INT((TODAY()-D54)/365.25)","v":39},"Finants","raamatupidaja",770]
[null,"Sirje Härm","naine","1955-05-14",{"$f":"MONTH(D55)","v":5},{"$f":"INT((TODAY()-D55)/365.25)","v":69},"Ost","sekretär",570]
[null,"Erna Eek","naine","1990-05-24",{"$f":"MONTH(D56)","v":5},{"$f":"INT((TODAY()-D56)/365.25)","v":34},"Tootmine","tööline",550]
[null,"Argo Salu","mees","1960-05-29",{"$f":"MONTH(D57)","v":5},{"$f":"INT((TODAY()-D57)/365.25)","v":64},"Tootmine","tööline",770]
[null,"Tiina Rajamäe","naine","1983-05-16",{"$f":"MONTH(D58)","v":5},{"$f":"INT((TODAY()-D58)/365.25)","v":41},"Transport","dispetser",710]
[null,"Margus Roosimägi","mees","1983-05-21",{"$f":"MONTH(D59)","v":5},{"$f":"INT((TODAY()-D59)/365.25)","v":41},"Transport","autojuht",910]
[null,null,null,null,"5 Count",null,{"$f":"SUBTOTAL(3,G53:G59)","v":7}]
[null,"Aasa Randla","naine","1952-06-15",{"$f":"MONTH(D61)","v":6},{"$f":"INT((TODAY()-D61)/365.25)","v":72},"Majandus","koristaja",480]
[null,"Arnold Norak","mees","1990-06-29",{"$f":"MONTH(D62)","v":6},{"$f":"INT((TODAY()-D62)/365.25)","v":34},"Tootmine","tööline",710]
[null,"Eevald Parts","mees","1988-06-17",{"$f":"MONTH(D63)","v":6},{"$f":"INT((TODAY()-D63)/365.25)","v":36},"Tootmine","lukksepp",860]
[null,"Kaspar Veesimaa","mees","1965-06-11",{"$f":"MONTH(D64)","v":6},{"$f":"INT((TODAY()-D64)/365.25)","v":59},"Tootmine","tööline",580]
[null,"Paul Naaber","mees","1977-06-21",{"$f":"MONTH(D65)","v":6},{"$f":"INT((TODAY()-D65)/365.25)","v":47},"Transport","autojuht",700]
[null,null,null,null,"6 Count",null,{"$f":"SUBTOTAL(3,G61:G65)","v":5}]
[null,"Tiina Markus","naine","1992-07-01",{"$f":"MONTH(D67)","v":7},{"$f":"INT((TODAY()-D67)/365.25)","v":32},"Ladu","tööline",500]
[null,"Tiina Toomsalu","naine","1957-07-22",{"$f":"MONTH(D68)","v":7},{"$f":"INT((TODAY()-D68)/365.25)","v":67},"Majandus","koristaja",430]
[null,"Kersti Miller","naine","1991-07-23",{"$f":"MONTH(D69)","v":7},{"$f":"INT((TODAY()-D69)/365.25)","v":33},"Tootmine","tööline",570]
[null,"Ahti Tubin","mees","1970-07-06",{"$f":"MONTH(D70)","v":7},{"$f":"INT((TODAY()-D70)/365.25)","v":54},"Tootmine","treial",900]
[null,"Aarne Oks","mees","1961-07-14",{"$f":"MONTH(D71)","v":7},{"$f":"INT((TODAY()-D71)/365.25)","v":63},"Transport","autojuht",700]
[null,null,null,null,"7 Count",null,{"$f":"SUBTOTAL(3,G67:G71)","v":5}]
[null,"Ene Burmeister","naine","1982-08-21",{"$f":"MONTH(D73)","v":8},{"$f":"INT((TODAY()-D73)/365.25)","v":42},"Finants","raamatupidaja",710]
[null,"Mare Eesmaa","naine","1984-08-16",{"$f":"MONTH(D74)","v":8},{"$f":"INT((TODAY()-D74)/365.25)","v":40},"Majandus","juhataja",1690]
[null,"Evelin Põld","naine","1970-08-21",{"$f":"MONTH(D75)","v":8},{"$f":"INT((TODAY()-D75)/365.25)","v":54},"Majandus","sekretär",640]
[null,"Faina Kukk","naine","1992-08-29",{"$f":"MONTH(D76)","v":8},{"$f":"INT((TODAY()-D76)/365.25)","v":32},"Müük","sekretär",580]
[null,"Kristjan Jürimäe","mees","1981-08-04",{"$f":"MONTH(D77)","v":8},{"$f":"INT((TODAY()-D77)/365.25)","v":43},"Tootmine","lukksepp",850]
[null,"Ahto Danilov","mees","1979-08-25",{"$f":"MONTH(D78)","v":8},{"$f":"INT((TODAY()-D78)/365.25)","v":45},"Transport","autojuht",910]
[null,null,null,null,"8 Count",null,{"$f":"SUBTOTAL(3,G73:G78)","v":6}]
[null,"Mirja Bergmann","naine","1953-09-11",{"$f":"MONTH(D80)","v":9},{"$f":"INT((TODAY()-D80)/365.25)","v":71},"Majandus","koristaja",1270]
[null,"Aarne Mikson","mees","1984-09-01",{"$f":"MONTH(D81)","v":9},{"$f":"INT((TODAY()-D81)/365.25)","v":40},"Ost","juhataja",1970]
[null,"Valve Mäesalu","naine","1970-09-01",{"$f":"MONTH(D82)","v":9},{"$f":"INT((TODAY()-D82)/365.25)","v":54},"Ost","sekretär",750]
[null,"Hendrik Kanter","mees","1954-09-01",{"$f":"MONTH(D83)","v":9},{"$f":"INT((TODAY()-D83)/365.25)","v":70},"Tootmine","juhataja",2180]
[null,"Riho Kuusk","mees","1952-09-14",{"$f":"MONTH(D84)","v":9},{"$f":"INT((TODAY()-D84)/365.25)","v":72},"Tootmine","tööline",690]
[null,"Aare Marmor","mees","1957-09-23",{"$f":"MONTH(D85)","v":9},{"$f":"INT((TODAY()-D85)/365.25)","v":67},"Tootmine","meister",950]
[null,"Kaivo Mets","mees","1973-09-01",{"$f":"MONTH(D86)","v":9},{"$f":"INT((TODAY()-D86)/365.25)","v":51},"Tootmine","meister",920]
[null,"Reijo Muld","mees","1981-09-24",{"$f":"MONTH(D87)","v":9},{"$f":"INT((TODAY()-D87)/365.25)","v":43},"Tootmine","tööline",790]
[null,"Meelis Petrov","mees","1992-09-21",{"$f":"MONTH(D88)","v":9},{"$f":"INT((TODAY()-D88)/365.25)","v":32},"Tootmine","tööline",570]
[null,null,null,null,"9 Count",null,{"$f":"SUBTOTAL(3,G80:G88)","v":9}]
[null,"Malle Ligi","naine","1967-10-03",{"$f":"MONTH(D90)","v":10},{"$f":"INT((TODAY()-D90)/365.25)","v":57},"Finants","jurist",1510]
[null,"Katy Veesimaa","naine","1975-10-17",{"$f":"MONTH(D91)","v":10},{"$f":"INT((TODAY()-D91)/365.25)","v":49},"Finants","referent",650]
[null,"Kaivo Berk","mees","1955-10-19",{"$f":"MONTH(D92)","v":10},{"$f":"INT((TODAY()-D92)/365.25)","v":69},"Ladu","tööline",510]
[null,"Reijo Bauman","mees","1965-10-04",{"$f":"MONTH(D93)","v":10},{"$f":"INT((TODAY()-D93)/365.25)","v":59},"Tootmine","tööline",700]
[null,"Olav Berk","mees","1950-10-04",{"$f":"MONTH(D94)","v":10},{"$f":"INT((TODAY()-D94)/365.25)","v":74},"Tootmine","tööline",580]
[null,"Erki Lepiksoo","mees","1981-10-31",{"$f":"MONTH(D95)","v":10},{"$f":"INT((TODAY()-D95)/365.25)","v":43},"Tootmine","treial",790]
[null,"Reijo Müürsepp","mees","1962-10-11",{"$f":"MONTH(D96)","v":10},{"$f":"INT((TODAY()-D96)/365.25)","v":62},"Tootmine","lukksepp",770]
[null,"Arvi Väljas","mees","1976-10-05",{"$f":"MONTH(D97)","v":10},{"$f":"INT((TODAY()-D97)/365.25)","v":48},"Tootmine","tööline",580]
[null,"Aadu Pulk","mees","1953-10-16",{"$f":"MONTH(D98)","v":10},{"$f":"INT((TODAY()-D98)/365.25)","v":71},"Transport","valvur",450]
[null,null,null,null,"10 Count",null,{"$f":"SUBTOTAL(3,G90:G98)","v":9}]
[null,"Meelis Kalju","mees","1992-11-16",{"$f":"MONTH(D100)","v":11},{"$f":"INT((TODAY()-D100)/365.25)","v":32},"Ladu","tööline",510]
[null,"Erika Kasemets","naine","1997-11-26",{"$f":"MONTH(D101)","v":11},{"$f":"INT((TODAY()-D101)/365.25)","v":27},"Müük","sekretär",650]
[null,"Hilja Raid","naine","1987-11-03",{"$f":"MONTH(D102)","v":11},{"$f":"INT((TODAY()-D102)/365.25)","v":37},"Müük","sekretär",640]
[null,"Maarja Ambros","naine","1977-11-13",{"$f":"MONTH(D103)","v":11},{"$f":"INT((TODAY()-D103)/365.25)","v":47},"Ost","sekretär",950]
[null,"Erki Ainsaar","mees","1975-11-12",{"$f":"MONTH(D104)","v":11},{"$f":"INT((TODAY()-D104)/365.25)","v":49},"Tootmine","lukksepp",1200]
[null,"Heli Lind","naine","1981-11-11",{"$f":"MONTH(D105)","v":11},{"$f":"INT((TODAY()-D105)/365.25)","v":43},"Tootmine","tööline",500]
[null,"Raivo Lokk","mees","1991-11-15",{"$f":"MONTH(D106)","v":11},{"$f":"INT((TODAY()-D106)/365.25)","v":33},"Tootmine","tööline",650]
[null,"Eino Luige","mees","1962-11-16",{"$f":"MONTH(D107)","v":11},{"$f":"INT((TODAY()-D107)/365.25)","v":62},"Tootmine","tööline",510]
[null,"Kustav Salu","mees","1982-11-20",{"$f":"MONTH(D108)","v":11},{"$f":"INT((TODAY()-D108)/365.25)","v":42},"Tootmine","tööline",770]
[null,null,null,null,"11 Count",null,{"$f":"SUBTOTAL(3,G100:G108)","v":9}]
[null,"Reijo Meigas","mees","1956-12-18",{"$f":"MONTH(D110)","v":12},{"$f":"INT((TODAY()-D110)/365.25)","v":68},"Ladu","tööline",640]
[null,"Erno Salumets","mees","1981-12-17",{"$f":"MONTH(D111)","v":12},{"$f":"INT((TODAY()-D111)/365.25)","v":43},"Müük","juhataja",2430]
[null,"Sirje Kreen","naine","1955-12-27",{"$f":"MONTH(D112)","v":12},{"$f":"INT((TODAY()-D112)/365.25)","v":69},"Tootmine","tööline",975]
[null,"Aarne Norak","mees","1975-12-07",{"$f":"MONTH(D113)","v":12},{"$f":"INT((TODAY()-D113)/365.25)","v":49},"Tootmine","tööline",620]
[null,"Karl Agur","mees","1994-12-21",{"$f":"MONTH(D114)","v":12},{"$f":"INT((TODAY()-D114)/365.25)","v":30},"Tootmine","tööline",870]
[null,"Priit Burmeister","mees","1992-12-16",{"$f":"MONTH(D115)","v":12},{"$f":"INT((TODAY()-D115)/365.25)","v":32},"Transport","autojuht",770]
[null,"Jaan Kaasik","mees","1960-12-20",{"$f":"MONTH(D116)","v":12},{"$f":"INT((TODAY()-D116)/365.25)","v":64},"Transport","autojuht",730]
[null,null,null,null,"12 Count",null,{"$f":"SUBTOTAL(3,G110:G116)","v":7}]
[null,null,null,null,"Grand Count",null,{"$f":"SUBTOTAL(3,G7:G116)","v":99}]